bitfinex-derivatives/quotes_ETHF0:USTF0_20240930
["timestamp","ask_amount","ask_price","bid_price","bid_amount"]
[1727697000008,0.382,2617.7,2617.6,0.38199]
[1727697000502,1.19938,2617.8,2617.7,0.38199]
[1727697000701,0.8603,2618.0,2617.5,0.98843783]
[1727697000702,1.81518,2618.0,2617.5,0.98843783]
[1727697000899,1.24225,2618.0,2617.9,0.38196]
[1727697001203,0.38196,2617.9,2617.8,0.38197]
[1727697002403,0.38198,2617.8,2617.7,3.59728]
[1727697002605,1.81518,2618.0,2617.7,3.2153]
[1727697002809,0.38197,2617.9,2617.8,0.38197]
[1727697002996,1.81518,2618.0,2617.7,3.2153]
[1727697003201,0.38198,2617.8,2617.7,3.2153]
[1727697003404,0.38198,2617.8,2617.7,1.20729]
[1727697003707,0.38197,2617.9,2617.8,0.38197]
[1727697005110,0.38198,2617.8,2617.7,1.20729]
[1727697005500,0.38197,2617.9,2617.8,0.38197]
[1727697005803,0.8603,2618.0,2617.7,0.8253]
[1727697006011,0.38197,2617.9,2617.8,0.38197]
[1727697006907,0.38191,2618.3,2618.2,0.38191]
[1727697007210,0.38191,2618.3,2617.8,15.19969815]
[1727697007211,0.95477,2618.3,2617.9,2.39]
[1727697007398,0.95477,2618.3,2618.1,0.38193]
[1727697007399,0.38193,2618.2,2618.1,0.38193]
[1727697007808,4.16253,2618.4,2618.1,3.8192]
[1727697008001,0.38191,2618.3,2618.2,1.22201]
[1727697008305,0.38191,2618.3,2618.2,0.8401]
[1727697008709,0.38191,2618.3,2618.2,1.22202]
[1727697009004,0.3819,2618.3,2618.2,1.22202]
[1727697009206,0.8688,2618.6,2618.2,7.0493]
[1727697009407,0.38184,2618.8,2618.7,0.38183]
[1727697009805,0.38185,2618.7,2618.6,0.38185]
[1727697010009,18.29852133,2618.9,2618.5,2.39]
[1727697010309,0.38184,2618.8,2618.7,0.38184]
[1727697010509,0.38184,2618.8,2618.6,0.38186]
[1727697010706,0.38184,2618.8,2618.7,0.38184]
[1727697011810,17.34397133,2618.9,2618.5,2.39]
[1727697012307,17.34397133,2618.9,2618.6,0.38186]
[1727697012512,0.38184,2618.8,2618.7,0.38184]
[1727697013502,18.13657133,2618.9,2618.5,2.39]
[1727697013711,14.13617133,2618.9,2618.8,0.38183]
[1727697013909,14.13617133,2618.9,2618.8,3.58963]
[1727697014110,14.13617133,2618.9,2618.8,7.40803]
[1727697014410,13.56309161,2618.9,2618.8,7.40803]
[1727697015212,13.56309161,2618.9,2618.8,11.45281031]
[1727697015399,13.56309161,2618.9,2618.8,18.25831031]
[1727697018113,13.56309161,2618.9,2618.8,11.45281031]
[1727697019113,13.56309161,2618.9,2618.8,7.63441031]
[1727697022111,13.56309161,2618.9,2618.8,11.45281031]
[1727697022316,13.56309161,2618.9,2618.8,7.63441031]
[1727697022704,13.56309161,2618.9,2618.8,11.45281031]
[1727697023113,13.56309161,2618.9,2618.8,7.63441031]
[1727697023507,0.38185,2618.7,2618.6,0.38186]
[1727697023813,0.38185,2618.7,2618.5,2.39]
[1727697023814,0.8235,2618.8,2618.7,0.38184]
[1727697024021,1.20533,2618.8,2618.7,2.77184]
[1727697024322,1.20533,2618.8,2618.7,2.39]
[1727697024505,0.8235,2618.8,2618.5,2.39]
[1727697024711,0.38186,2618.6,2618.5,2.77186]
[1727697025113,1.24806,2618.6,2618.5,2.77186]
[1727697025310,0.8662,2618.6,2618.5,2.77186]
[1727697025818,1.24806,2618.6,2618.5,2.39]
[1727697026210,4.6854,2618.6,2618.1,2.39]
[1727697026514,0.38192,2618.2,2618.1,2.39]
[1727697026715,0.38192,2618.2,2618.1,2.77193]
[1727697027716,0.38192,2618.2,2618.1,2.39]
[1727697027916,1.23002,2618.2,2618.1,2.77193]
[1727697028723,1.23002,2618.2,2618.1,2.39]
[1727697029016,0.8481,2618.2,2618.1,2.77193]
[1727697031019,0.8351,2618.3,2618.1,2.39]
[1727697031323,0.8351,2618.3,2618.2,0.38192]
[1727697031522,0.8636,2618.5,2618.2,0.38192]
[1727697031819,1.24548,2618.5,2618.4,0.38189]
[1727697032229,0.8636,2618.5,2618.4,0.38189]
[1727697034221,2.06136,2618.6,2618.3,3.2298]
[1727697034222,1.6795,2618.6,2618.3,3.2298]
[1727697034524,1.6795,2618.6,2618.5,2.77187]
[1727697034928,0.8662,2618.6,2618.5,2.77187]
[1727697035228,1.66,2618.8,2618.7,0.38184]
[1727697035423,1.66,2618.8,2618.7,2.77184]
[1727697036428,14.40369161,2618.9,2618.7,2.39]
[1727697036727,14.40369161,2618.9,2618.8,0.38183]
[1727697036925,13.56309161,2618.9,2618.8,2.01023]
[1727697037119,2.03309161,2618.9,2618.8,15.94292052]
[1727697037320,2.03309161,2618.9,2618.8,16.75142052]
[1727697037534,1.0781076,2618.9,2618.8,16.75142052]
[1727697038323,0.8482,2619.6,2619.5,0.38173]
[1727697039131,0.8482,2619.6,2619.3,2.39]
[1727697039422,0.8482,2619.6,2619.4,0.38174]
[1727697039629,1.22991,2619.6,2619.4,0.38174]
[1727697040032,0.38174,2619.5,2619.3,2.77175]
[1727697040326,0.38174,2619.5,2619.1,5.5978]
[1727697040327,0.38177,2619.3,2619.1,5.5978]
[1727697040517,0.38177,2619.3,2619.1,5.97958]
[1727697040720,1.21765,2619.4,2619.2,0.38177]
[1727697040925,1.21765,2619.4,2619.1,2.39]
[1727697041122,1.21765,2619.4,2619.2,0.38176]
[1727697041320,0.8359,2619.4,2619.1,2.39]
[1727697041521,0.38176,2619.3,2619.1,2.77178]
[1727697041918,0.8359,2619.4,2618.8,5.7584]
[1727697042126,0.3818,2619.0,2618.9,2.39]
[1727697043225,0.38183,2618.9,2618.7,2.77184]
[1727697043431,0.38183,2618.8,2618.7,2.39]
[1727697045928,0.863,2618.9,2618.7,2.77184]
[1727697046228,0.38183,2618.8,2618.7,2.77184]
[1727697046938,0.863,2618.9,2618.7,2.77184]
[1727697047230,1.1994,2619.1,2618.9,0.38181]
[1727697047436,0.8176,2619.1,2618.9,2.39]
[1727697047733,0.8176,2619.1,2618.9,2.7718]
[1727697048035,1.1994,2619.1,2618.9,2.7718]
[1727697048232,0.8176,2619.1,2619.0,0.3818]
[1727697048637,1.19939,2619.1,2619.0,0.3818]
[1727697049539,0.8176,2619.1,2618.9,2.39]
[1727697049739,0.3818,2619.0,2618.9,2.77181]
[1727697049936,0.3818,2619.0,2618.9,0.38182]
[1727697052739,0.38181,2619.0,2618.9,0.3818]
[1727697054435,1.23349,2619.1,2619.0,0.3818]
[1727697057637,0.8517,2619.1,2618.7,3.34461]
[1727697057833,1.2335,2619.1,2619.0,0.3818]
[1727697058444,1.23349,2619.1,2619.0,0.3818]
[1727697058835,0.0341,2619.1,2619.0,0.3818]
[1727697059040,0.0341,2619.1,2619.0,1.187]
[1727697062138,0.0341,2619.1,2618.9,3.60301]
[1727697062338,0.0341,2619.1,2618.9,3.2212]
[1727697062339,0.3818,2619.0,2618.9,3.2212]
[1727697062640,2.0975,2619.1,2618.9,7.88980841]
[1727697063932,2.0975,2619.1,2619.0,0.3818]
[1727697064132,0.3818,2619.0,2618.9,6.67679841]
[1727697064338,0.3818,2619.0,2618.7,6.4045]
[1727697064646,2.0975,2619.1,2618.9,0.38181]
[1727697064845,0.3818,2619.0,2618.9,0.38181]
[1727697065734,0.38182,2618.9,2618.8,0.38182]
[1727697066043,0.38181,2619.0,2618.7,6.4045]
[1727697066344,0.8409,2618.8,2618.7,6.78634]
[1727697068443,0.8409,2618.8,2618.7,3.57854]
[1727697071142,0.8409,2618.8,2618.5,0.98843783]
[1727697071337,4.0487,2618.8,2618.3,0.98843783]
[1727697071537,0.38188,2618.5,2618.3,0.38189]
[1727697071745,2.5207,2618.4,2618.3,0.38189]
[1727697072046,2.90259,2618.4,2618.3,0.38189]
[1727697072249,2.5207,2618.4,2618.1,0.8305]
[1727697072446,0.38191,2618.3,2618.1,0.38193]
[1727697072742,2.9026,2618.4,2618.2,0.38191]
[1727697072949,0.3819,2618.3,2618.2,0.38191]
[1727697073142,0.3819,2618.3,2618.1,0.38192]
[1727697073651,2.9026,2618.4,2618.2,0.38191]
[1727697074234,0.3819,2618.3,2618.2,0.38191]
[1727697074649,0.3819,2618.3,2618.1,0.38193]
[1727697074837,2.5207,2618.4,2618.1,0.38193]
[1727697075238,0.38191,2618.3,2618.2,0.38191]
[1727697075647,2.90259,2618.4,2618.0,6.4283]
[1727697075833,2.5207,2618.4,2618.0,6.4283]
[1727697076037,2.9026,2618.4,2618.2,0.38191]
[1727697076236,2.9026,2618.4,2618.0,6.4283]
[1727697076237,2.9026,2618.4,2618.3,0.3819]
[1727697076438,2.5207,2618.4,2618.3,0.3819]
[1727697076738,2.90259,2618.4,2618.3,0.3819]
[1727697077337,2.90259,2618.4,2618.2,2.39]
[1727697077550,2.90259,2618.4,2618.3,0.3819]
[1727697078251,2.5207,2618.4,2618.3,0.3819]
[1727697078451,2.90259,2618.4,2618.3,0.3819]
[1727697078642,0.3819,2618.3,2618.2,2.77191]
[1727697080744,0.8165,2618.4,2618.2,2.39]
[1727697080947,0.8165,2618.4,2618.3,0.3819]
[1727697081150,0.8165,2618.4,2618.3,1.214]
[1727697081653,0.3819,2618.3,2618.2,2.77191]
[1727697082143,1.1984,2618.4,2618.3,0.3819]
[1727697082338,0.3819,2618.3,2618.2,2.7719]
[1727697082743,1.1984,2618.4,2618.3,0.3819]
[1727697083940,0.3819,2618.3,2618.2,2.77191]
[1727697084546,1.19841,2618.4,2618.3,0.3819]
[1727697085752,2.65603,2618.7,2618.3,0.3819]
[1727697085753,0.38187,2618.6,2618.5,0.38187]
[1727697085946,0.8601,2618.6,2618.5,0.38187]
[1727697086748,3.2078,2618.8,2618.5,2.39]
[1727697086949,3.2078,2618.8,2618.7,2.77184]
[1727697086950,3.58963,2618.8,2618.7,2.77184]
[1727697087249,3.2078,2618.8,2618.7,2.77184]
[1727697087650,3.58963,2618.8,2618.7,2.77184]
[1727697087846,3.2078,2618.8,2618.7,2.77184]
[1727697088046,3.58963,2618.8,2618.7,2.77184]
[1727697088246,1.6433,2618.9,2618.7,2.39]
[1727697088247,0.8601,2618.9,2618.7,2.39]
[1727697088447,0.3818,2619.1,2619.0,0.3818]
[1727697088751,1.22807,2619.3,2619.2,0.38177]
[1727697088961,0.8463,2619.3,2619.0,3.21]
[1727697089255,0.38177,2619.2,2619.0,7.87456004]
[1727697089649,0.38177,2619.2,2619.1,0.38179]
[1727697089953,0.8463,2619.3,2619.0,7.49276004]
[1727697090154,1.22807,2619.3,2619.1,0.38178]
[1727697090753,0.38177,2619.2,2619.0,7.87456004]
[1727697091058,0.38177,2619.2,2619.0,7.49276004]
[1727697091250,0.8463,2619.3,2619.1,0.38179]
[1727697091445,1.22807,2619.3,2619.1,0.38179]
[1727697091951,1.22807,2619.3,2619.0,7.49276004]
[1727697091952,0.8463,2619.3,2619.0,7.49276004]
[1727697092156,0.38178,2619.2,2619.0,7.87455004]
[1727697092552,0.8463,2619.3,2619.0,7.49276004]
[1727697092751,0.38178,2619.2,2619.0,7.87455004]
[1727697092952,1.22806,2619.3,2619.1,0.38177]
[1727697093155,0.8463,2619.3,2619.2,0.38177]
[1727697093361,1.22807,2619.3,2619.1,0.38178]
[1727697093949,0.38179,2619.1,2619.0,7.49276004]
[1727697094356,0.38179,2619.1,2619.0,5.10276004]
[1727697095052,3.8184,2619.1,2618.6,6.58623783]
[1727697095363,0.38182,2618.9,2618.8,0.38183]
[1727697095666,0.38182,2618.9,2618.7,0.38183]
[1727697095853,2.05462,2618.9,2618.7,0.38183]
[1727697096249,2.05462,2618.9,2618.6,2.39]
[1727697096445,2.05462,2618.9,2618.7,0.38184]
[1727697096446,0.38184,2618.8,2618.7,0.38184]
[1727697096750,0.38183,2618.8,2618.7,0.38184]
[1727697096952,2.05462,2618.9,2618.7,0.38184]
[1727697097354,1.6728,2618.9,2618.7,0.38184]
[1727697097572,0.38183,2618.8,2618.7,0.38184]
[1727697097866,1.6728,2618.9,2618.7,0.38184]
[1727697098054,2.05463,2618.9,2618.7,0.38184]
[1727697098758,2.05463,2618.9,2618.5,1.6071]
[1727697098954,0.38184,2618.8,2618.6,0.38185]
[1727697099161,1.6728,2618.9,2618.5,1.6071]
[1727697099357,2.05462,2618.9,2618.7,0.38184]
[1727697099565,0.38179,2619.1,2618.8,2.39]
[1727697099861,0.38179,2619.1,2619.0,0.3818]
[1727697100371,1.23118,2619.2,2619.1,0.38179]
[1727697101262,4.6678,2619.2,2619.1,0.38179]
[1727697101559,0.8494,2619.2,2619.1,0.38179]
[1727697101761,0.38177,2619.3,2619.2,0.38177]
[1727697101966,1.23117,2619.3,2619.2,0.38177]
[1727697102867,1.6589,2619.4,2619.0,0.8177]
[1727697103066,1.19457,2619.3,2619.2,0.38176]
[1727697106866,0.8128,2619.3,2619.0,0.8177]
[1727697107065,0.38178,2619.2,2619.1,0.38177]
[1727697107266,0.8128,2619.3,2619.0,0.8177]
[1727697107469,0.38179,2619.1,2619.0,1.19949]
[1727697107666,1.76722,2619.3,2618.9,1.24131]
[1727697107667,0.3818,2619.0,2618.9,1.24131]
[1727697107868,0.8503,2619.0,2618.6,0.7994]
[1727697108176,0.38183,2618.8,2618.7,0.38184]
[1727697109069,0.38184,2618.8,2618.7,0.38184]
[1727697110563,1.20602,2618.9,2618.8,0.38183]
[1727697111074,0.8242,2618.9,2618.6,0.7994]
[1727697111672,1.20603,2618.9,2618.8,0.38183]
[1727697111976,1.20603,2618.9,2618.7,0.38184]
[1727697112171,0.38183,2618.8,2618.7,0.38184]
[1727697112371,1.20602,2618.9,2618.8,0.38183]
[1727697115282,1.20602,2618.9,2618.6,0.7994]
[1727697115578,1.20602,2618.9,2618.8,0.38183]
[1727697116577,0.38184,2618.8,2618.7,0.38184]
[1727697116778,0.8242,2618.9,2618.6,0.7994]
[1727697116979,1.20603,2618.9,2618.8,0.38183]
[1727697117781,0.8242,2618.9,2618.8,0.38183]
[1727697118278,1.20602,2618.9,2618.8,0.38183]
[1727697120985,0.8242,2618.9,2618.6,0.7994]
[1727697121173,0.8242,2618.9,2618.7,0.38184]
[1727697121174,0.38184,2618.8,2618.7,0.38184]
[1727697121584,1.20603,2618.9,2618.8,0.38183]
[1727697122087,0.38183,2618.8,2618.7,1.48184]
[1727697122272,0.8242,2618.9,2618.7,1.1]
[1727697122477,1.20603,2618.9,2618.8,0.38183]
[1727697123079,0.8242,2618.9,2618.7,1.1]
[1727697123279,1.20602,2618.9,2618.8,0.38183]
[1727697124085,1.20603,2618.9,2618.8,0.38183]
[1727697124981,4.6426,2618.9,2618.4,4.19739821]
[1727697125189,4.6426,2618.9,2618.3,2.58439732]
[1727697125190,0.38189,2618.4,2618.3,2.47149821]
[1727697125578,0.38189,2618.4,2618.3,2.47148821]
[1727697126879,0.8318,2618.5,2618.3,1.48189]
[1727697127076,1.21369,2618.5,2618.3,1.48189]
[1727697127281,0.38189,2618.4,2618.3,1.1]
[1727697127488,0.38189,2618.4,2618.3,1.4819]
[1727697127787,1.21368,2618.5,2618.3,1.4819]
[1727697128688,0.38189,2618.4,2618.3,1.4819]
[1727697129190,1.21368,2618.5,2618.3,2.47149821]
[1727697129490,1.21368,2618.5,2618.3,1.4819]
[1727697129692,1.21368,2618.5,2618.3,2.47149821]
[1727697130487,1.21368,2618.5,2618.4,0.38189]
[1727697130684,1.21368,2618.5,2618.4,1.1]
[1727697130894,0.8318,2618.5,2618.4,1.1]
[1727697131078,0.8318,2618.5,2618.4,1.48189]
[1727697131788,0.8438,2618.8,2618.4,2.08959821]
[1727697131982,0.8438,2618.8,2618.7,1.48184]
[1727697132386,1.22563,2618.8,2618.7,1.48184]
[1727697132784,0.38185,2618.7,2618.6,1.48185]
[1727697132977,0.38187,2618.6,2618.5,0.38187]
[1727697133788,0.95462,2618.7,2618.4,1.1]
[1727697133988,0.38189,2618.4,2618.3,1.37148821]
[1727697134382,0.7967,2618.5,2618.3,0.98959821]
[1727697134581,1.17859,2618.5,2618.4,0.38189]
[1727697134788,0.38189,2618.4,2618.3,1.37148821]
[1727697134991,0.7967,2618.5,2618.4,0.38189]
[1727697135187,0.38189,2618.4,2618.3,1.37148821]
[1727697135493,0.7967,2618.5,2618.4,0.38189]
[1727697135683,1.17857,2618.5,2618.3,1.37148821]
[1727697135884,1.17857,2618.5,2618.4,0.38189]
[1727697136084,1.17857,2618.5,2618.3,0.98959821]
[1727697136388,1.17857,2618.5,2618.4,0.38189]
[1727697136686,1.17857,2618.5,2618.3,1.37148821]
[1727697136994,0.8048,2618.4,2618.3,0.38189]
[1727697137785,0.7967,2618.5,2618.4,0.38189]
[1727697138089,0.38187,2618.6,2618.4,1.48188]
[1727697138288,1.23557,2618.6,2618.4,1.48188]
[1727697139682,0.8537,2618.6,2618.5,0.38187]
[1727697139988,0.0341,2618.9,2618.4,1.1]
[1727697140192,0.38184,2618.8,2618.6,1.48185]
[1727697140392,1.26963,2618.9,2618.8,0.38183]
[1727697141094,0.8878,2618.9,2618.7,1.6256]
[1727697141297,0.38183,2618.8,2618.7,1.6256]
[1727697141586,0.38184,2618.8,2618.7,0.38184]
[1727697142186,0.38184,2618.7,2618.6,1.48186]
[1727697142597,0.38184,2618.7,2618.6,1.1]
[1727697142792,0.38187,2618.6,2618.5,1.1]
[1727697142987,0.38187,2618.6,2618.3,1.1]
[1727697143184,0.38189,2618.4,2618.3,1.1]
[1727697143994,0.38189,2618.4,2618.3,1.4819]
[1727697144296,2.86059,2618.5,2618.4,0.38189]
[1727697144489,2.4787,2618.5,2618.3,1.1]
[1727697144693,0.38189,2618.4,2618.3,1.1]
[1727697146094,2.4787,2618.5,2618.3,1.1]
[1727697146291,0.38189,2618.4,2618.3,1.4819]
[1727697147598,0.38189,2618.4,2618.3,1.1]
[1727697148093,0.38189,2618.4,2618.3,1.4819]
[1727697148297,0.38189,2618.4,2618.3,1.1]
[1727697148600,4.20109,2618.4,2618.3,1.1]
[1727697148792,0.38189,2618.4,2618.3,1.4819]
[1727697149997,0.38189,2618.4,2618.3,1.1]
[1727697156799,2.86058,2618.5,2618.4,0.38189]
[1727697156999,2.86058,2618.5,2618.4,1.1]
[1727697157302,2.86058,2618.5,2618.4,1.48189]
[1727697157508,2.86058,2618.5,2618.4,1.1]
[1727697157509,2.4787,2618.5,2618.4,1.1]
[1727697157896,2.4787,2618.5,2618.4,1.48189]
[1727697158794,0.8386,2618.5,2618.4,1.48189]
[1727697159501,1.22047,2618.5,2618.4,1.48189]
[1727697160408,0.8386,2618.5,2618.4,1.48189]
[1727697160615,1.22047,2618.5,2618.4,1.48189]
[1727697160804,0.8386,2618.5,2618.4,1.48189]
[1727697161608,1.22047,2618.5,2618.4,1.48189]
[1727697163415,0.8386,2618.5,2618.4,1.48189]
[1727697163616,1.22047,2618.5,2618.4,1.48189]
[1727697165813,0.38187,2618.6,2618.5,0.38187]
[1727697169824,0.38187,2618.6,2618.5,1.22097]
[1727697171224,0.41597,2618.6,2618.5,1.22097]
[1727697174027,0.41597,2618.6,2618.5,2.21056821]
[1727697176020,0.41597,2618.6,2618.5,1.37146821]
[1727697176232,0.38187,2618.5,2618.4,1.37148821]
[1727697176726,0.38187,2618.5,2618.4,0.98959821]
[1727697177116,0.38187,2618.5,2618.4,1.37148821]
[1727697177716,0.38187,2618.5,2618.4,0.98959821]
[1727697178431,0.38187,2618.5,2618.4,1.83209821]
[1727697179022,0.38187,2618.5,2618.4,3.54712825]
[1727697179218,0.38187,2618.5,2618.4,3.55144058]
[1727697179432,0.38187,2618.5,2618.4,3.65753004]
[1727697179633,0.0341,2618.6,2618.4,3.27564004]
[1727697179830,0.41597,2618.6,2618.5,2.31556818]
[1727697180129,0.0341,2618.6,2618.5,3.64856705]
[1727697180325,0.0341,2618.6,2618.5,6.47386887]
[1727697180529,0.0341,2618.6,2618.5,7.95826619]
[1727697180725,0.0341,2618.6,2618.5,6.47386887]
[1727697182624,0.0341,2618.6,2618.5,5.14087]
[1727697182820,0.0341,2618.6,2618.5,6.47337093]
[1727697185240,0.0341,2618.6,2618.5,6.47316683]
[1727697185537,3.2078,2619.3,2618.6,1.3365]
[1727697185739,4.47516,2619.3,2619.2,1.1]
[1727697185937,0.38177,2619.2,2619.1,0.99299964]
[1727697186243,4.47517,2619.3,2619.1,3.42307964]
[1727697186436,4.47517,2619.3,2619.2,0.38177]
[1727697186741,4.0934,2619.3,2619.2,0.38177]
[1727697186939,3.2078,2619.3,2619.2,0.38177]
[1727697187137,3.2078,2619.3,2619.2,2.47476964]
[1727697187436,3.2078,2619.3,2619.2,1.48177]
[1727697187836,0.8886,2619.7,2619.2,10.18198166]
[1727697188039,1.27031,2619.7,2619.6,1.1]
[1727697188538,0.3817,2619.7,2619.6,1.1]
[1727697189442,2.1993,2619.8,2619.6,1.48171]
[1727697189935,0.3817,2619.7,2619.6,1.48171]
[1727697190243,2.19929,2619.8,2619.6,1.1]
[1727697190439,2.19929,2619.8,2619.6,1.48171]
[1727697190633,2.19929,2619.8,2619.7,0.3817]
[1727697191746,4.0934,2619.9,2619.6,1.1]
[1727697191939,0.8856,2619.9,2619.8,1.48168]
[1727697192330,1.7945,2620.1,2619.8,1.1]
[1727697192331,2.17615,2620.1,2619.8,1.1]
[1727697192640,2.17615,2620.1,2620.0,1.1]
[1727697192942,0.38164,2620.1,2620.0,1.1]
[1727697193140,3.05903,2620.2,2620.0,1.48165]
[1727697193641,0.38164,2620.1,2620.0,1.1]
[1727697195245,0.38166,2620.0,2619.9,1.1]
[1727697195438,3.58946,2620.0,2619.9,1.1]
[1727697196648,3.2078,2620.0,2619.9,1.48167]
[1727697196840,3.2078,2620.0,2619.9,1.1]
[1727697197439,3.2078,2620.0,2619.9,1.48167]
[1727697198537,3.2078,2620.0,2619.7,0.9216]
[1727697198746,0.38167,2619.9,2619.8,1.1]
[1727697199339,3.2078,2620.0,2619.6,1.1]
[1727697199540,3.2078,2620.0,2619.4,4.1294]
[1727697199541,0.38171,2619.6,2619.5,1.1]
[1727697201140,0.38171,2619.6,2619.5,1.48173]
[1727697201340,0.38171,2619.6,2619.5,1.1]
[1727697202339,2.224,2619.7,2619.5,1.1]
[1727697202532,2.224,2619.7,2619.6,1.1]
[1727697202738,1.8423,2619.7,2619.6,1.48171]
[1727697203941,0.9139,2619.8,2619.6,4.9176]
[1727697204242,0.9139,2619.8,2619.7,0.3817]
[1727697205243,0.9139,2619.8,2619.7,1.2799]
[1727697205640,1.29558,2619.8,2619.7,1.2799]
[1727697206444,0.9139,2619.8,2619.7,1.2799]
[1727697208441,0.38167,2619.9,2619.8,0.38168]
[1727697208750,0.9454,2620.1,2619.8,1.1]
[1727697209049,1.32705,2620.1,2620.0,1.1]
[1727697220546,0.38166,2620.0,2619.9,1.48167]
[1727697220748,0.38166,2620.0,2619.9,1.1]
[1727697221254,0.38166,2620.0,2619.9,1.48167]
[1727697221548,0.38166,2620.0,2619.9,1.1]
[1727697226156,3.8168,2620.0,2619.5,1.7534]
[1727697226461,0.3817,2619.8,2619.7,1.48168]
[1727697227561,0.95418,2619.9,2619.6,0.38171]
[1727697227855,1.7771,2619.7,2619.6,0.38171]
[1727697228060,2.1588,2619.7,2619.6,0.38171]
[1727697228551,1.7771,2619.7,2619.6,0.38171]
[1727697228865,2.1588,2619.7,2619.6,0.38171]
[1727697229162,1.7771,2619.7,2619.6,0.38171]
[1727697229755,1.7771,2619.7,2619.5,1.7534]
[1727697229947,0.38171,2619.6,2619.5,2.13512]
[1727697230151,1.7771,2619.7,2619.5,2.13512]
[1727697230152,2.1588,2619.7,2619.5,2.8534]
[1727697230351,2.1588,2619.7,2619.5,3.23512]
[1727697231056,2.1588,2619.7,2619.6,0.38171]
[1727697232254,2.1588,2619.7,2619.6,1.48171]
[1727697240665,3.2078,2620.0,2619.6,1.1]
[1727697240869,0.38168,2619.9,2619.8,0.38167]
[1727697242164,5.0614,2620.0,2619.8,1.48167]
[1727697242358,3.58946,2620.0,2619.9,0.38167]
[1727697242560,3.58946,2620.0,2619.9,2.25217]
[1727697243670,3.58946,2620.0,2619.9,1.8705]
[1727697243875,3.58946,2620.0,2619.9,2.25217]
[1727697248580,3.2078,2620.0,2619.9,2.25217]
[1727697249874,3.58946,2620.0,2619.9,2.25217]
[1727697250183,3.62356,2620.0,2619.9,2.25217]
[1727697250477,3.2419,2620.0,2619.9,2.25217]
[1727697250777,0.0341,2620.0,2619.9,2.25217]
[1727697250982,0.0341,2620.0,2619.9,3.24516964]
[1727697251388,0.0341,2620.0,2619.9,7.06196964]
[1727697251590,0.0341,2620.0,2619.9,11.56225857]
[1727697251787,0.0341,2620.0,2619.9,12.66225857]
[1727697251987,0.0341,2620.0,2619.9,14.15175803]
[1727697252288,0.0341,2620.0,2619.9,12.66225857]
[1727697252492,0.0341,2620.0,2619.9,11.33166122]
[1727697252791,0.0341,2620.0,2619.9,12.66221448]
[1727697253590,0.0341,2620.0,2619.9,13.65407074]
[1727697253784,0.0341,2620.0,2619.9,9.83727074]
[1727697253991,0.0341,2620.0,2619.9,13.65407074]
[1727697255485,0.0341,2620.0,2619.9,12.66221448]
[1727697255681,0.0341,2620.0,2619.9,8.84541448]
[1727697255885,0.0341,2620.0,2619.9,12.66221448]
[1727697256699,0.0341,2620.0,2619.9,13.65596192]
[1727697256898,0.0341,2620.0,2619.9,12.6632778]
[1727697257092,0.0341,2620.0,2619.9,11.33166122]
[1727697260895,0.0341,2620.0,2619.9,7.51486122]
[1727697261200,0.0341,2620.0,2619.9,11.33166122]
[1727697264095,0.0341,2620.0,2619.9,12.66240937]
[1727697264590,0.0341,2620.0,2619.9,13.65440873]
[1727697265199,0.0341,2620.0,2619.9,12.66240937]
[1727697265395,0.0341,2620.0,2619.9,13.65434955]
[1727697266399,0.38161,2620.3,2620.2,0.38163]
[1727697266597,0.38161,2620.3,2620.2,1.48163]
[1727697266801,0.38161,2620.3,2620.2,1.1]
[1727697268298,0.38161,2620.3,2620.2,1.48163]
[1727697269205,1.2456,2620.4,2620.3,0.38161]
[1727697269405,0.864,2620.4,2620.3,1.29201]
[1727697269608,0.864,2620.4,2620.3,2.16251]
[1727697272208,1.2456,2620.4,2620.3,3.26251]
[1727697272507,0.864,2620.4,2620.3,3.26251]
[1727697274304,0.38159,2620.5,2620.3,3.26251]
[1727697274511,1.26536,2620.7,2620.5,0.38158]
[1727697274706,3.2078,2620.8,2620.7,0.38155]
[1727697275103,0.8824,2621.0,2620.9,0.38152]
[1727697275301,0.9238,2621.2,2621.1,0.3815]
[1727697275609,0.9238,2621.2,2621.1,1.4815]
[1727697275802,0.8838,2621.3,2621.2,0.38148]
[1727697276608,0.9006,2621.4,2621.2,1.8063]
[1727697276914,0.9006,2621.4,2621.3,1.48147]
[1727697277411,0.8838,2621.6,2621.3,5.50773932]
[1727697277605,0.8838,2621.6,2621.5,1.1]
[1727697277805,0.8838,2621.6,2621.5,1.48144]
[1727697278513,3.2078,2622.2,2621.5,4.9144]
[1727697278708,3.58914,2622.2,2622.1,1.1]
[1727697279101,7.40274,2622.2,2622.1,1.1]
[1727697279505,0.38137,2622.0,2621.9,1.1]
[1727697280510,0.38138,2621.9,2621.8,1.1]
[1727697280824,5.10198,2621.9,2621.8,1.1]
[1727697284121,1.28758,2621.9,2621.8,1.1]
[1727697288819,0.95355,2621.7,2621.1,3.2078]
[1727697289015,0.38145,2621.5,2621.4,1.1]
[1727697289417,0.38145,2621.5,2621.1,3.2078]
[1727697289418,0.38147,2621.3,2621.2,1.1]
[1727697295125,0.38148,2621.2,2621.1,3.2078]
[1727697295433,2.15508,2621.2,2621.1,4.3078]
[1727697296831,2.15508,2621.2,2621.1,4.6893]
[1727697297731,1.7736,2621.2,2621.1,4.6893]
[1727697297929,0.9423,2621.4,2621.1,4.3078]
[1727697298125,0.8686,2621.5,2621.3,1.1]
[1727697298329,0.38142,2621.7,2621.4,2.0478]